bitfinex/quotes_ETHUSD_20240816
["timestamp","ask_amount","ask_price","bid_price","bid_amount"]
[1723835404503,7.209223,2619.7,2619.2,3.81795]
[1723835404706,3.81743,2619.6,2619.0,6.11033]
[1723835404925,2.3896,2619.7,2619.1,3.81809]
[1723835405150,2.3976,2620.0,2619.5,3.8174]
[1723835406042,2.3976,2620.0,2619.6,3.81736]
[1723835406244,2.3976,2620.0,2619.5,3.8174]
[1723835406451,2.3976,2620.0,2619.6,3.81731]
[1723835406603,10.23508,2620.3,2619.6,3.81731]
[1723835406799,1.9796704,2624.4,2619.6,3.81731]
[1723835406800,6.29962,2620.6,2620.0,3.81671]
[1723835407002,2.4837,2620.6,2620.0,3.81671]
[1723835407297,2.4837,2620.6,2619.8,3.81698]
[1723835407608,7.63226,2620.5,2619.9,3.81685]
[1723835408008,7.63226,2620.5,2619.8,8.263408]
[1723835408211,3.81608,2620.5,2619.8,4.446418]
[1723835408435,2.48600513,2620.9,2619.9,0.4446418]
[1723835408742,3.81526,2621.1,2620.6,3.81591]
[1723835409154,3.81526,2621.1,2620.7,0.07187879]
[1723835409357,2.4197,2621.2,2620.7,0.07187879]
[1723835409565,3.81476,2621.4,2620.7,0.07187879]
[1723835409715,4.59636602,2621.4,2620.7,0.07187879]
[1723835409921,3.81513,2621.2,2620.7,0.07187879]
[1723835410125,7.63027,2621.2,2620.7,0.07187879]
[1723835410327,3.81519,2621.1,2620.7,0.07187879]
[1723835410716,3.81519,2621.1,2620.5,3.81604]
[1723835410918,0.381519,2621.1,2620.8,0.07172797]
[1723835411230,3.8151,2621.2,2620.9,0.07162399]
[1723835411667,3.8151,2621.2,2620.6,3.81582]
[1723835411816,0.69732463,2621.3,2621.0,0.07148735]
[1723835412017,0.69732463,2621.3,2620.7,3.81568]
[1723835412221,0.69732463,2621.3,2621.1,0.0713823]
[1723835412222,4.72590207,2621.2,2621.1,0.0713823]
[1723835412445,3.81504,2621.2,2621.1,0.0713823]
[1723835412659,3.81504,2621.2,2620.6,7.63165]
[1723835412873,0.762998,2621.1,2620.6,7.63165]
[1723835413016,3.81504,2621.2,2620.6,7.63166]
[1723835413223,6.19149024,2621.5,2620.8,3.81554]
[1723835413531,3.81491,2621.3,2620.6,7.63162]
[1723835413852,0.381491,2621.2,2620.7,3.81574]
[1723835415333,0.381491,2621.2,2620.6,7.63161]
[1723835415533,0.381491,2621.2,2620.7,3.81569]
[1723835415739,3.81491,2621.3,2620.7,3.81569]
[1723835416137,8.01606426,2621.5,2620.6,3.81579]
[1723835416138,3.81505,2621.2,2620.6,7.63162]
[1723835416341,8.01608426,2621.5,2620.6,3.81579]
[1723835416646,0.80160843,2621.4,2620.8,3.81554]
[1723835416849,8.01608426,2621.5,2620.8,3.81554]
[1723835417052,7.94978402,2621.5,2620.8,3.81554]
[1723835417649,4.13508402,2621.5,2621.0,3.81522]
[1723835417832,2.3105,2621.5,2621.1,3.81517]
[1723835418263,0.06628622,2621.8,2621.4,3.81468]
[1723835418264,2.3965,2621.8,2621.4,3.81468]
[1723835418435,6.21031,2622.1,2621.5,3.81459]
[1723835419332,6.21031,2622.1,2621.4,7.62932]
[1723835419529,3.81403,2621.9,2621.2,7.62987]
[1723835419771,3.81403,2621.9,2621.3,3.81486]
[1723835420133,3.81433,2621.7,2621.2,3.8149]
[1723835420344,3.81433,2621.7,2621.1,7.32]
[1723835420345,6.21107,2621.6,2621.1,7.32]
[1723835420547,6.592503,2621.6,2621.1,7.32]
[1723835420860,2.777933,2621.6,2621.2,3.81497]
[1723835421197,2.3965,2621.9,2621.4,3.81475]
[1723835421342,6.21057,2621.9,2621.2,3.81495]
[1723835421539,0.68695863,2621.8,2621.3,3.81487]
[1723835421977,0.68695863,2621.8,2621.1,11.13513]
[1723835422174,0.68976086,2621.7,2621.2,3.81494]
[1723835422483,0.68976086,2621.7,2621.1,11.1351]
[1723835422484,4.50419086,2621.7,2621.1,11.1351]
[1723835422683,0.45041909,2621.6,2621.1,11.1351]
[1723835423047,0.45041909,2621.6,2621.2,3.81502]
[1723835423247,4.50415086,2621.7,2621.2,3.81502]
[1723835423654,4.50415086,2621.7,2621.1,11.1351]
[1723835424093,4.50415086,2621.7,2621.1,14.95021]
[1723835424290,4.50415086,2621.7,2621.1,11.1351]
[1723835424458,4.50415086,2621.7,2621.1,14.9502]
[1723835424659,4.50415086,2621.7,2621.2,0.07103655]
[1723835424870,0.68976086,2621.7,2621.2,3.88605655]
[1723835425058,6.21061,2621.9,2621.2,3.88605655]
[1723835425445,3.81425,2621.8,2621.2,3.88605655]
[1723835425788,3.81461,2621.5,2621.2,0.07103655]
[1723835425997,2.259,2621.4,2621.2,0.07103655]
[1723835426485,0.762894,2621.5,2621.2,0.07103655]
[1723835426643,6.07333,2621.7,2621.2,0.07103655]
[1723835426841,9.88774,2621.7,2621.2,0.07103655]
[1723835427044,6.07333,2621.7,2621.2,0.07103655]
[1723835427482,3.81448,2621.6,2621.2,0.07103655]
[1723835427677,3.81462,2621.5,2621.2,0.07103655]
[1723835429104,0.988781,2621.6,2621.2,0.07103655]
[1723835429243,6.07341,2621.7,2621.2,3.88606655]
[1723835429448,2.259,2621.7,2621.3,3.81482]
[1723835429653,6.07335,2621.7,2621.2,0.07103655]
[1723835429967,3.81459,2621.6,2621.3,0.070913]
[1723835430150,3.81459,2621.6,2621.1,7.32]
[1723835430349,7.062103,2621.7,2621.2,0.07101694]
[1723835430657,2.259,2621.7,2621.2,3.88591694]
[1723835430845,3.81418,2621.8,2621.2,3.88591694]
[1723835431262,4.86881263,2621.8,2621.2,3.88591694]
[1723835431701,4.86881263,2621.8,2621.3,3.81488]
[1723835431884,8.68306263,2621.8,2621.2,0.11019538]
[1723835432091,6.07355,2621.6,2621.4,0.11007471]
[1723835432295,6.07355,2621.6,2621.3,0.11018014]
[1723835432583,6.07355,2621.6,2621.4,0.11007471]
[1723835432783,6.07355,2621.6,2621.1,7.32]
[1723835432784,6.87319889,2621.6,2621.1,7.32]
[1723835433081,6.87319889,2621.6,2621.2,0.11028559]
[1723835433284,3.05864889,2621.6,2621.2,0.11028559]
[1723835433522,3.05864889,2621.6,2621.2,3.92531559]
[1723835434721,1.05463263,2621.8,2621.4,3.81475]
[1723835435020,2.259,2621.9,2621.5,0.10997472]
[1723835435207,6.07309,2621.9,2621.5,0.10997472]
[1723835435396,1.000209,2621.8,2621.3,3.81489]
[1723835435719,1.000209,2621.8,2621.4,0.11008015]
[1723835435720,3.81433,2621.7,2621.4,0.11008015]
[1723835435930,6.2441,2621.5,2621.4,0.11008015]
[1723835436227,3.81475,2621.4,2621.1,7.32]
[1723835436435,7.74393,2621.3,2621.1,7.32]
[1723835436598,7.74393,2621.3,2620.2,3.8164]
[1723835436599,3.81555,2620.9,2620.2,3.8164]
[1723835436802,2.4295,2620.8,2620.0,3.81665]
[1723835437116,2.4295,2620.8,2619.8,3.81707]
[1723835437117,2.4295,2620.4,2619.8,3.81707]
[1723835437313,4.553558,2620.3,2619.4,3.81759]
[1723835437515,3.81674,2620.1,2619.4,3.81759]
[1723835437825,3.81674,2620.1,2619.2,3.81786]
[1723835437826,3.81702,2619.9,2619.2,7.63571]
[1723835438038,8.258434,2620.0,2619.2,3.81785]
[1723835438246,4.441504,2620.0,2619.2,4.432045]
[1723835438526,3.81695,2619.9,2619.3,3.81773]
[1723835438930,0.624624,2620.0,2619.4,3.81765]
[1723835439320,4.441454,2620.0,2619.5,0.10835116]
[1723835439519,3.81693,2619.9,2619.5,0.10835116]
[1723835439715,4.6427534,2619.9,2619.5,0.10835116]
[1723835439946,6.12409,2619.8,2619.2,3.81784]
[1723835440152,2.307,2619.8,2619.6,0.10824558]
[1723835440360,2.307,2619.8,2619.2,3.81784]
[1723835440361,2.307,2619.8,2619.2,7.63566]
[1723835440515,2.307,2619.8,2619.7,0.10814]
[1723835440718,2.919394,2619.8,2619.2,7.63568]
[1723835440963,2.307,2619.8,2619.7,0.10814]
[1723835441132,3.81673,2620.1,2619.7,0.10814]
[1723835441133,2.307,2620.1,2619.7,3.8172]
[1723835441332,2.307,2620.1,2619.7,3.92529]
[1723835441530,2.307,2620.1,2619.8,3.81708]
[1723835441754,0.06631567,2620.3,2619.8,3.81708]
[1723835441955,3.81629,2620.4,2619.8,3.81708]
[1723835442239,4.428601,2620.4,2619.9,0.10792888]
[1723835442437,0.612311,2620.4,2619.9,0.10792888]
[1723835442740,3.81636,2620.3,2619.9,0.10792888]
[1723835443099,0.4428671,2620.2,2619.7,3.81718]
[1723835443295,0.4428671,2620.2,2620.0,0.10782333]
[1723835443440,0.612311,2620.4,2619.8,3.81698]
[1723835443780,0.612311,2620.4,2619.9,0.10792888]
[1723835443996,3.81644,2620.3,2619.9,0.10792888]
[1723835444149,1.0551901,2620.3,2619.9,0.10792888]
[1723835444492,0.612311,2620.4,2620.0,0.10798994]
[1723835444691,6.12315,2620.5,2620.0,0.10798994]
[1723835444844,6.12315,2620.5,2619.9,3.81681]
[1723835445045,6.12315,2620.5,2620.0,0.10798349]
[1723835445758,2.307,2620.5,2620.0,3.92473349]
[1723835446254,0.2307,2620.4,2620.0,0.10798349]
[1723835446454,0.2307,2620.4,2619.9,3.81688]
[1723835446701,0.2307,2620.4,2620.1,0.10799293]
[1723835446906,3.81646,2620.3,2620.0,0.10809847]
[1723835447197,3.81646,2620.3,2620.2,0.1078874]
[1723835447401,3.81646,2620.3,2620.2,0.10789492]
[1723835447597,3.81646,2620.3,2619.6,3.8173]
[1723835447800,3.81646,2620.3,2619.7,3.92557267]
[1723835448582,2.307,2620.5,2619.8,3.81705]
[1723835448930,2.307,2620.5,2620.0,3.81669]
[1723835449143,2.307,2620.5,2619.9,6.424558]
[1723835449353,2.307,2620.5,2620.1,0.10800691]
[1723835449632,2.307,2620.5,2620.2,0.10790138]
[1723835449790,2.307,2620.5,2619.9,10.1332]
[1723835449992,3.30753366,2620.5,2620.0,0.10811245]
[1723835450623,3.30753366,2620.5,2620.0,3.92481245]
[1723835450830,6.12317,2620.5,2620.0,0.10811245]
[1723835451193,6.12317,2620.5,2619.8,7.63394]
[1723835451429,6.12317,2620.5,2619.9,0.108218]
[1723835451585,7.12371766,2620.5,2619.9,0.108218]
[1723835451993,3.81622,2620.4,2619.9,0.108218]
[1723835452234,3.81651,2620.2,2619.9,0.108218]
[1723835452439,3.81651,2620.2,2619.6,7.63457]
[1723835452637,3.81651,2620.2,2619.7,0.10842805]
[1723835452939,7.6331,2620.2,2619.7,0.10842805]
[1723835453234,6.07118,2619.8,2619.7,0.10842805]
[1723835453458,6.07118,2619.8,2619.0,3.81815]
[1723835453459,6.07118,2619.8,2619.0,3.81814]
[1723835453658,3.81745,2619.6,2619.1,0.10906806]
[1723835454144,0.607118,2619.7,2619.1,7.74502806]
[1723835454447,0.607118,2619.7,2619.1,0.10906806]
[1723835454448,3.81724,2619.7,2619.1,0.10906806]
[1723835454652,4.4850728,2619.7,2619.1,3.818]
[1723835454937,6.07121,2619.8,2619.3,3.81779]
[1723835455141,2.2541,2619.8,2619.4,3.81756]
[1723835455309,2.2541,2619.8,2619.4,3.92631125]
[1723835455651,2.2541,2619.8,2619.4,7.74389125]
[1723835455803,2.2541,2619.8,2619.4,3.92631125]
[1723835456157,2.2541,2619.8,2619.4,0.10875125]
[1723835456158,3.81725,2619.7,2619.4,0.10875125]
[1723835456500,2.2541,2619.3,2618.8,3.81842]
[1723835457199,2.2541,2619.3,2618.9,3.81839]
[1723835457543,3.81738,2619.6,2618.9,3.81839]
[1723835457544,3.81738,2619.6,2619.0,3.81824]
[1723835458034,3.81738,2619.6,2619.0,3.81817]
[1723835458257,3.81764,2619.5,2618.9,0.763681]
[1723835458536,7.63484,2619.6,2619.0,3.81824]
[1723835458747,3.81756,2619.5,2618.9,0.763681]
[1723835458957,7.63485,2619.6,2618.9,0.763681]
[1723835459119,3.81754,2619.5,2619.0,3.7299501]
[1723835459324,3.81768,2619.4,2618.8,3.81841]
[1723835459647,2.2541,2619.3,2618.9,3.81836]
[1723835459797,2.2541,2619.3,2618.8,3.81841]
[1723835460204,2.2541,2619.3,2618.5,5.4995]
[1723835460409,11.104445,2619.6,2618.9,3.81827]
[1723835460647,6.29804,2619.6,2618.8,3.81846]
[1723835460821,3.81776,2619.4,2618.8,3.81843]
[1723835461007,3.81783,2619.3,2618.8,3.81843]
[1723835461213,6.26987,2619.1,2618.5,3.81894]
[1723835461509,3.81825,2619.0,2618.4,4.54768519]
[1723835461773,2.4517,2619.1,2618.5,3.81889]
[1723835462082,0.4840464,2619.3,2618.7,3.81857]
[1723835462252,3.8179,2619.3,2618.7,7.63718]
[1723835462455,3.8179,2619.3,2618.7,3.81857]
[1723835463178,6.2694,2619.4,2618.7,3.81857]
[1723835463179,3.81799,2619.2,2618.7,3.81857]
[1723835463394,4.826729,2619.2,2618.7,3.81857]
[1723835463747,2.4517,2619.4,2618.9,3.81837]
[1723835464066,3.81783,2619.3,2618.8,3.81853]
[1723835464271,3.81798,2619.2,2618.7,3.81856]
[1723835464446,3.81798,2619.2,2618.5,7.63774]
[1723835464793,3.81798,2619.2,2618.6,3.81879]
[1723835465090,1.0714463,2619.2,2618.6,3.81879]
[1723835465239,8.262683,2619.3,2618.7,3.81863]
[1723835465439,4.444783,2619.3,2618.6,3.81879]
[1723835465642,3.8181,2619.1,2618.6,3.81879]
[1723835465870,0.6896483,2619.2,2618.7,3.81861]
[1723835466085,3.81783,2619.3,2618.7,3.81861]
[1723835466242,3.81797,2619.2,2618.6,3.81874]
[1723835466643,3.81783,2619.3,2618.7,3.81862]
[1723835467286,0.626953,2619.3,2618.5,3.81887]
[1723835467499,6.09804,2619.0,2618.5,3.81887]
[1723835467904,2.2797,2619.0,2618.7,3.81865]
[1723835468273,6.09757,2619.3,2618.8,3.81854]
[1723835468605,2.2797,2619.3,2618.9,3.81838]
[1723835469204,2.2797,2619.3,2619.0,0.1094362]
[1723835469406,2.2797,2619.3,2619.0,3.9275962]
[1723835469982,6.27687,2619.6,2619.1,3.81807]
[1723835470166,2.4595,2619.9,2619.4,3.81752]
[1723835470371,2.4595,2619.9,2619.3,3.81772]
[1723835470711,2.4595,2619.9,2619.4,0.10899223]
[1723835470712,3.81709,2619.8,2619.4,0.10899223]
[1723835471013,6.91070955,2619.9,2619.4,3.92665223]
[1723835471212,2.4595,2619.9,2619.4,3.92655223]
[1723835471774,6.27644,2619.9,2619.4,3.92655223]
[1723835472393,6.27644,2619.9,2619.4,0.10899223]
[1723835472574,7.285752,2619.9,2619.4,0.10899223]
[1723835473305,2.4595,2619.9,2619.4,3.92663223]
[1723835473499,2.4595,2619.9,2619.4,3.92658223]
[1723835473815,2.4595,2619.9,2619.5,3.8175]
[1723835474017,6.27644,2619.9,2619.4,0.10899223]
[1723835474220,3.81708,2619.8,2619.6,0.10874985]
[1723835474421,3.81737,2619.6,2619.5,0.10885544]
[1723835474715,3.81737,2619.6,2619.1,11.13801]
[1723835474932,3.81795,2619.2,2619.1,7.32]
[1723835475075,3.81795,2619.2,2618.5,3.8189]
[1723835475076,7.405335,2619.2,2618.5,3.8189]
[1723835475406,2.4029,2619.5,2618.8,3.81845]
[1723835475610,2.4029,2619.5,2618.9,3.81839]
[1723835475817,2.4029,2619.5,2619.0,3.81823]
[1723835476314,2.4029,2619.5,2618.8,3.81845]
[1723835476315,3.81766,2619.4,2618.8,3.8184]
[1723835476522,3.81798,2619.2,2618.6,7.63749]
[1723835476722,7.63606,2619.2,2618.6,3.81874]
[1723835476950,7.63606,2619.2,2618.4,11.2689685]
[1723835476951,3.929,2619.0,2618.4,7.4499485]
[1723835477248,3.81862,2618.8,2618.4,7.4499485]
[1723835477743,3.81876,2618.7,2618.4,7.4499485]
[1723835477959,2.3715,2618.7,2618.4,7.4499485]
[1723835478451,6.1902,2618.7,2618.4,7.4499485]
[1723835478751,2.3715,2618.7,2618.4,7.4499485]
[1723835478899,6.19022,2618.7,2618.4,7.4499485]
[1723835479858,6.19022,2618.7,2618.4,0.1299485]
[1723835479859,3.81887,2618.6,2618.4,0.1299485]
[1723835480144,3.81898,2618.5,2618.4,0.1299485]
[1723835480299,7.63796,2618.5,2618.4,0.1299485]
[1723835480745,7.63796,2618.5,2618.4,0.23809702]
[1723835480927,8.7389944,2618.5,2618.4,0.23809702]
[1723835481329,11.0103944,2618.5,2618.4,0.1299485]
[1723835482140,11.5603944,2618.5,2618.4,0.1299485]
[1723835483154,7.1914144,2618.5,2618.4,0.1299485]
[1723835484209,7.1914144,2618.5,2618.4,0.23814655]
[1723835484411,11.0103944,2618.5,2618.4,0.1299485]
[1723835484614,3.3724344,2618.5,2618.4,0.1299485]
[1723835484806,6.09038,2618.5,2618.4,0.1299485]
[1723835485590,9.90936,2618.5,2618.4,0.1299485]
[1723835487768,6.09038,2618.5,2618.4,0.1299485]
[1723835488132,9.90936,2618.5,2618.4,0.1299485]
[1723835488335,10.45936,2618.5,2618.4,0.1299485]
[1723835488559,11.898196,2618.5,2618.4,0.1299485]
[1723835488742,11.348196,2618.5,2618.4,0.1299485]
[1723835489077,11.898196,2618.5,2618.4,0.1299485]
[1723835489630,2.2723,2618.8,2618.4,0.1299485]
[1723835489864,3.81872,2618.7,2618.5,0.10814839]
[1723835490641,2.2723,2618.8,2618.5,0.10814839]
[1723835490983,3.81848,2618.9,2618.5,0.10814839]
[1723835491181,4.593228,2618.9,2618.5,0.10814839]
[1723835491364,3.81848,2618.9,2618.5,0.10814839]
[1723835491566,0.06633453,2619.3,2618.6,3.81881]
[1723835491767,0.06633453,2619.3,2618.7,0.62034584]
[1723835491941,3.88422453,2619.3,2618.7,0.72824629]
[1723835492143,3.81824,2619.1,2618.7,0.10790045]
[1723835492566,3.81824,2619.1,2618.5,6.09547]
[1723835492755,3.81824,2619.1,2618.8,0.10776789]
[1723835492951,3.81824,2619.1,2618.5,6.09547]
[1723835492952,3.81796,2619.2,2618.6,3.8188]
[1723835493149,3.81818,2619.1,2618.9,0.10766225]
[1723835493438,3.81796,2619.2,2618.6,3.8188]
[1723835493642,3.81813,2619.1,2618.6,4.63506653]
[1723835493973,3.81813,2619.1,2618.7,0.10787354]
[1723835494462,7.63663,2619.0,2618.7,0.10787354]
[1723835494766,7.63663,2619.0,2618.4,3.9489685]
[1723835494767,6.2049,2618.9,2618.4,0.1299485]
[1723835494974,10.02341,2618.9,2618.8,0.10776789]
[1723835495283,3.81898,2618.5,2618.4,0.1299485]
[1723835495482,7.74786,2618.6,2618.4,0.1299485]
[1723835495840,10.02446,2618.5,2618.4,0.1299485]
[1723835496077,11.419806,2618.5,2618.4,0.1299485]
[1723835496281,11.969806,2618.5,2618.4,0.1299485]
[1723835497282,2.3865,2618.5,2618.4,0.1299485]
[1723835497451,3.81898,2618.5,2618.4,0.1299485]
[1723835498253,3.81881,2618.7,2618.4,0.1299485]
[1723835498454,6.81886,2618.6,2618.4,0.1299485]
[1723835499150,3.81898,2618.5,2618.4,0.1299485]
[1723835499412,1.063779,2618.5,2618.4,0.1299485]
[1723835499581,6.81883,2618.6,2618.4,0.1299485]
[1723835500271,3.81898,2618.5,2618.4,0.1299485]
[1723835501488,10.74796,2618.6,2618.4,0.1299485]
[1723835501659,3.81898,2618.5,2618.4,0.1299485]
[1723835502487,6.81896,2618.6,2618.4,0.1299485]
[1723835503257,3.0,2618.6,2618.4,0.1299485]
[1723835503775,6.81883,2618.6,2618.4,0.1299485]
[1723835503976,8.121234,2618.6,2618.4,0.1299485]
[1723835504802,4.302404,2618.6,2618.4,0.1299485]
[1723835506269,3.81898,2618.5,2618.4,0.1299485]
[1723835506662,7.63782,2618.6,2618.4,0.1299485]
[1723835507005,3.81891,2618.6,2618.4,0.1299485]
[1723835507901,7.63787,2618.6,2618.4,0.1299485]
[1723835508200,3.81883,2618.7,2618.4,0.1299485]
[1723835509606,3.81885,2618.6,2618.4,0.1299485]
[1723835509909,7.63778,2618.6,2618.4,0.1299485]
[1723835510087,3.81885,2618.6,2618.4,0.1299485]
[1723835510789,6.20514,2618.8,2618.4,0.1299485]
[1723835510986,3.81869,2618.7,2618.4,0.1299485]
[1723835511184,3.81885,2618.6,2618.4,0.1299485]
[1723835513922,3.0,2619.0,2618.6,3.81876]
[1723835514104,3.0,2619.1,2618.6,3.81876]
[1723835514307,3.81805,2619.2,2618.7,0.10785954]
[1723835514505,0.06636659,2619.4,2618.7,0.10785954]
[1723835514678,3.8184,2618.9,2618.4,6.2637585]
[1723835514875,3.8184,2618.9,2618.5,0.10807085]
[1723835515785,3.81869,2618.7,2618.5,0.10807085]
[1723835516420,7.63766,2618.6,2618.5,0.10807085]
[1723835516719,8.783295,2618.6,2618.5,0.10807085]
[1723835519819,4.964465,2618.6,2618.5,0.10807085]
[1723835520206,3.81883,2618.6,2618.5,0.10807085]
[1723835521310,3.8184,2618.9,2618.5,0.10807085]
[1723835521512,3.81883,2618.6,2618.5,0.10807085]
[1723835521684,10.01816,2618.6,2618.5,0.10807085]
[1723835523824,3.81883,2618.6,2618.5,0.10807085]
[1723835524135,7.63766,2618.6,2618.5,0.10807085]
[1723835524718,3.81883,2618.6,2618.5,0.10807085]
[1723835524917,4.200713,2618.6,2618.5,0.10807085]
[1723835526904,3.81869,2618.7,2618.5,0.10807085]
[1723835527535,10.747873,2618.9,2618.5,0.10807085]
[1723835527536,3.81849,2618.9,2618.5,0.10807085]
[1723835527733,3.81855,2618.8,2618.5,0.10807085]
[1723835529537,3.81849,2618.9,2618.5,0.10807085]
[1723835529701,8.254969,2618.9,2618.5,0.10807085]
[1723835530207,6.18393,2618.6,2618.5,0.10807085]
[1723835530739,10.00276,2618.6,2618.5,0.10807085]
[1723835531354,17.75059,2618.6,2618.5,0.10807085]
[1723835531649,21.30059,2618.6,2618.5,0.10807085]
[1723835531944,13.82204,2618.5,2618.4,0.1299485]
[1723835532137,17.37204,2618.5,2618.4,0.1299485]
[1723835534656,17.43843111,2618.5,2618.4,0.1299485]
[1723835538430,13.61945111,2618.5,2618.4,0.1299485]
[1723835538730,15.03919251,2618.5,2618.4,0.1299485]
[1723835540325,6.88537111,2618.5,2618.4,0.1299485]
[1723835541077,10.70435111,2618.5,2618.4,0.1299485]
[1723835541278,20.92453111,2618.5,2618.4,0.1299485]
[1723835541652,20.82905661,2618.5,2618.4,0.1299485]
[1723835541862,21.37905661,2618.5,2618.4,0.1299485]
[1723835542079,23.51696227,2618.5,2618.4,0.1299485]
[1723835542585,27.33594227,2618.5,2618.4,0.1299485]
[1723835544516,27.33594227,2618.5,2618.4,8.5e-06]
[1723835545249,3.82043,2617.5,2617.0,2.4986]
[1723835545783,3.82043,2617.5,2617.1,0.10969423]
[1723835546164,3.82024,2617.7,2617.1,0.10969423]
[1723835546373,3.82038,2617.6,2617.1,0.10969423]
[1723835547668,3.8208,2617.3,2617.1,0.10969423]
[1723835547875,7.64163,2617.3,2617.1,0.10969423]
[1723835548071,7.64161,2617.3,2617.1,0.10969423]
[1723835548393,3.8208,2617.3,2617.1,0.10969423]
[1723835549411,3.82052,2617.5,2617.1,0.10969423]
[1723835549563,3.82052,2617.5,2617.1,1.10252365]
[1723835551463,3.82052,2617.5,2617.1,0.10969423]
[1723835552326,3.82074,2617.3,2617.1,0.10969423]
[1723835552800,5.498,2618.0,2617.1,0.52701275]
[1723835552996,5.498,2618.0,2617.2,4.12336128]
[1723835552997,3.82011,2617.8,2617.2,4.12336128]
[1723835553527,15.20849,2618.2,2617.2,4.12336128]
[1723835553528,3.81937,2618.3,2617.7,2.4673]
[1723835553682,3.81937,2618.3,2617.7,6.28743]
[1723835553683,3.81949,2618.2,2617.7,6.28743]
[1723835553888,3.81964,2618.1,2617.8,0.10895397]
[1723835554207,3.81985,2617.9,2617.8,0.10895397]
[1723835554532,3.81985,2617.9,2617.4,9.7873]
[1723835554735,3.81985,2617.9,2617.8,0.10895397]
[1723835555029,3.81971,2618.0,2617.5,0.10927118]
[1723835555326,3.82,2617.8,2617.4,9.7873]
[1723835555533,3.82,2617.8,2617.6,0.10916543]
[1723835555887,3.81971,2618.0,2617.4,15.04008174]
[1723835556228,3.81971,2618.0,2617.5,3.82036]
[1723835556398,3.81971,2618.0,2617.6,1.88604417]
[1723835558230,0.06638318,2618.3,2618.0,3.8196]
[1723835558435,3.81892,2618.6,2618.1,6.29883]
[1723835558750,7.63784,2618.6,2618.2,1.011843]
[1723835558934,3.819,2618.5,2618.1,2.4793]
[1723835559108,3.819,2618.5,2618.0,3.8196]
[1723835559310,3.819,2618.5,2618.0,4.3348435]
[1723835559734,3.819,2618.5,2618.0,0.5152435]
[1723835560265,2.3683,2618.3,2617.6,2.4793]
[1723835560430,3.8198,2618.0,2617.4,13.45408]
[1723835560753,7.63962,2618.0,2617.4,13.45408]
[1723835560916,7.63962,2618.0,2617.4,15.181565]
[1723835561117,3.8198,2618.0,2617.4,19.002065]
[1723835561525,3.8198,2618.0,2617.5,0.10932074]
[1723835561930,3.81987,2617.9,2617.5,0.10932074]
[1723835562464,3.82001,2617.8,2617.5,0.10932074]
[1723835562951,3.82015,2617.7,2617.5,0.10932074]
[1723835563153,3.82029,2617.6,2617.5,0.10932074]
[1723835563484,3.82029,2617.6,2617.1,9.6793]
[1723835563761,3.82045,2617.5,2617.1,9.6793]
[1723835565457,3.82073,2617.3,2616.8,11.14137]
[1723835565756,3.82073,2617.3,2616.8,5.420509]
[1723835566064,3.82045,2617.5,2616.8,5.92981779]
[1723835566357,3.82045,2617.5,2617.0,3.82116]
[1723835566658,3.82029,2617.6,2617.1,2.3593]
[1723835567017,3.82022,2617.7,2617.1,2.3593]
[1723835567238,3.82047,2617.5,2616.9,6.18057]
[1723835567564,3.82029,2617.6,2617.0,3.82108]
[1723835567741,3.8203,2617.6,2617.1,3.82092]
[1723835568148,3.82055,2617.5,2617.0,0.618038]
[1723835568349,3.82055,2617.5,2616.9,6.18049]
[1723835569048,7.64112,2617.5,2616.9,6.18049]
[1723835569256,3.82064,2617.4,2616.9,6.18049]
[1723835569640,3.82055,2617.5,2617.0,3.82114]
[1723835570487,3.82029,2617.6,2617.1,3.82094]
[1723835571753,3.82029,2617.6,2617.1,7.64185]
[1723835571948,3.82001,2617.8,2617.1,3.82091]
[1723835572173,3.82001,2617.8,2617.3,3.82064]
[1723835572567,3.81986,2617.9,2617.3,3.82061]
[1723835572773,6.8198,2618.0,2617.5,3.82036]
[1723835572973,3.8198,2618.0,2617.6,3.82029]
[1723835573158,3.8198,2618.0,2617.5,3.82043]
[1723835573579,3.8198,2618.0,2617.5,3.82036]
[1723835573852,3.81949,2618.2,2617.5,3.82033]
[1723835574178,3.81963,2618.1,2617.6,3.9295084]
[1723835574752,3.81949,2618.2,2617.7,2.3593]
[1723835575070,7.63899,2618.2,2617.8,0.10903694]
[1723835575267,3.81949,2618.2,2617.8,0.10903694]
[1723835575481,7.63899,2618.2,2617.8,0.10903694]
[1723835575699,3.81957,2618.1,2617.8,0.10903694]
[1723835575999,3.81985,2617.9,2617.8,0.10903694]
[1723835576357,3.81971,2618.0,2617.3,6.17992]
[1723835576693,3.81985,2617.9,2617.4,3.82055]
[1723835576996,3.81985,2617.9,2617.4,4.9300569]
[1723835577175,3.82002,2617.8,2617.4,1.1095069]
[1723835577393,3.82002,2617.8,2617.4,0.1094599]
[1723835578497,3.81971,2618.0,2617.4,0.1094599]
[1723835578698,3.81989,2617.9,2617.4,3.9299699]
[1723835580075,7.64011,2617.8,2617.4,0.1094599]
[1723835580278,3.82001,2617.8,2617.4,0.1094599]
[1723835581296,3.81993,2617.9,2617.4,0.1094599]
[1723835581598,3.81993,2617.9,2617.4,3.9300299]
[1723835581970,3.81953,2618.2,2617.6,3.82023]
[1723835582174,3.81953,2618.2,2617.7,2.52019009]
[1723835582475,0.06638393,2618.3,2617.7,2.52019009]
[1723835582676,3.81934,2618.3,2617.8,3.81992]
[1723835582911,3.81934,2618.3,2617.8,3.92897742]
[1723835583202,3.8195,2618.2,2617.8,0.10905742]
[1723835584790,3.81927,2618.3,2617.8,3.92904742]
[1723835584988,3.81927,2618.3,2617.8,4.94508816]
[1723835586133,3.81898,2618.5,2617.8,1.12509816]
[1723835586334,3.81898,2618.5,2618.1,2.3735]
[1723835586706,3.81898,2618.5,2618.2,0.10863459]
[1723835587196,3.81884,2618.6,2618.2,0.10863459]
[1723835587391,3.81898,2618.5,2618.2,0.10863459]
[1723835588032,3.81913,2618.4,2618.2,0.10863459]
[1723835588338,3.81891,2618.6,2618.0,3.81961]